fUSD/lending_fUSD_20251019
["ID","MTS","AMOUNT","RATE_DAILY","PERIOD"]
[391846712,1760910633944,-408.031801,0.00033047,8]
[391846713,1760910633958,-91.968199,0.00033047,8]
[391846714,1760910633969,-151.0,0.00033047,30]
[391846715,1760910633980,-435.05764571,0.00033047,8]
[391846716,1760910633992,-151.0,0.00033047,30]
[391846717,1760910634004,-500.0,0.00033047,8]
[391846718,1760910634014,-500.0,0.00033047,8]
[391846719,1760910634026,-1897.1,0.00033047,7]
[391846720,1760910634037,-531.74185829,0.00033047,8]
[391846721,1760910634052,-156.71814171,0.00033047,8]
[391846722,1760910634067,-154.139668,0.00033047,30]
[391846723,1760910634079,-500.0,0.00033047,8]
[391846724,1760910634091,-115.15768496,0.00033047,8]
[391846725,1760910634104,-384.84231504,0.00033047,8]
[391846726,1760910634116,-500.0,0.00033047,8]
[391846727,1760910634127,-500.0,0.00033047,8]
[391846728,1760910634137,-525.81,0.00033047,8]
[391846729,1760910634147,-500.0,0.00033047,8]
[391846730,1760910634157,-667.7,0.00033047,8]
[391846731,1760910634168,-275.342862,0.00033047,30]
[391846732,1760910634178,-500.0,0.00033047,8]
[391846733,1760910634192,-1000.0,0.00033047,8]
[391846734,1760910634204,-718.75,0.00033047,8]
[391846735,1760910634215,-565.59,0.00033047,8]
[391846736,1760910634225,-512.50119622,0.00033047,8]
[391846737,1760910634235,-500.0,0.00033047,8]
[391846738,1760910634244,-500.0,0.00033047,8]
[391846739,1760910634255,-500.0,0.00033047,8]
[391846740,1760910634265,-500.0,0.00033047,8]
[391846741,1760910634277,-500.0,0.00033048,8]
[391846742,1760910634288,-441.71,0.00033048,8]
[391846743,1760910634301,-500.0,0.00033048,8]
[391846744,1760910634312,-500.0,0.00033048,7]
[391846745,1760910634323,-233.94,0.00033048,7]
[391846746,1760910634333,-500.0,0.00033048,8]
[391846747,1760910634343,-602.51,0.00033048,8]
[391846748,1760910634354,-313.85030318,0.00033048,8]
[391846749,1760910634364,-500.0,0.00033048,8]
[391846750,1760910634374,-520.25932364,0.00033048,8]
[391846751,1760910634388,-503.25909032,0.00033048,8]
[391846752,1760910634399,-583.59883388,0.00033048,8]
[391846753,1760910634409,-667.0,0.00033048,2]
[391846754,1760910634420,-649.09244324,0.00033048,8]
[391846755,1760910634432,-500.0,0.00033048,8]
[391846756,1760910634443,-500.0,0.00033048,8]
[391846757,1760910634454,-300.0,0.00033048,8]
[391846758,1760910634466,-500.0,0.00033048,8]
[391846759,1760910634477,-500.0,0.00033048,2]
[391846760,1760910634488,-500.0,0.00033048,8]
[391846761,1760910634499,-500.0,0.00033048,8]
[391846762,1760910634509,-417.95702607,0.00033048,8]
[391846763,1760910634520,-131.60251046,0.00033048,8]
[391846764,1760910634533,-250.0,0.00033048,8]
[391846765,1760910634546,-118.39748954,0.00033048,8]
[391846766,1760910634556,-500.0,0.00033048,8]
[391846767,1760910634567,-273.07681076,0.00033048,8]
[391846785,1760910639449,-465.53102558,0.00031993,2]
[391846786,1760910639561,-717.46897442,0.00031993,2]
[391846787,1760910639573,-226.92318924,0.00033048,8]
[391846788,1760910639583,-26.58783406,0.00033048,8]
[391846811,1760910642544,-649.34,0.00033047,8]
[391846812,1760910642554,-500.0,0.00033047,8]
[391846815,1760910642799,-473.41216594,0.00033048,8]
[391846816,1760910642813,-153.093661,0.00033048,30]
[391846817,1760910642822,-151.0,0.00033048,30]
[391846818,1760910642831,-500.0,0.00033048,8]
[391846819,1760910642841,-500.0,0.00033048,8]
[391846820,1760910642850,-500.0,0.00033048,8]
[391846821,1760910642859,-151.0,0.00033048,30]
[391846823,1760910642868,-591.65133437,0.00033048,8]
[391846825,1760910642878,-151.0,0.00033048,30]
[391846827,1760910642887,-505.23400101,0.00033048,8]
[391846829,1760910642896,-500.83131247,0.00033048,8]
[391846831,1760910642905,-500.0,0.00033048,8]
[391846833,1760910642915,-506.77,0.00033048,8]
[391846835,1760910642924,-500.0,0.00033048,8]
[391846837,1760910642933,-500.0,0.00033048,8]
[391846839,1760910642942,-500.0,0.00033048,8]
[391846841,1760910642951,-500.0,0.00033048,8]
[391846843,1760910642961,-681.23,0.00033048,8]
[391846845,1760910642970,-500.0,0.00033048,8]
[391846847,1760910642980,-500.0,0.00033048,8]
[391846849,1760910642990,-500.0,0.00033048,8]
[391846851,1760910642998,-381.43752522,0.00033048,8]
[391846878,1760910660798,200.0,0.0003421,120]
[391846910,1760910730188,269.17583591,0.0003421,30]
[391846912,1760910730799,151.96430448,0.0003421,30]
[391846915,1760910733805,312.82941931,0.0003421,30]
[391847054,1760910961316,200.0,0.0003421,120]
[391847119,1760911261525,200.0,0.00034217,120]
[391847322,1760911561529,200.0,0.00034218,120]
[391847358,1760911631155,1285.14187945,0.00034218,30]
[391847398,1760911831673,-475.82771539,0.00027886,2]
[391847400,1760911831684,-475.82771539,0.00028,10]
[391847401,1760911831694,-261.33347254,0.00028121,2]
[391847402,1760911831704,-500.0,0.00028215,7]
[391847403,1760911831713,-2006.31396595,0.00028217,2]
[391847404,1760911831723,-800.0,0.00028221,7]
[391847405,1760911831732,-500.0,0.00028224,2]
[391847406,1760911831742,-800.0,0.00028259,7]
[391847407,1760911831752,-1900.0,0.00028265,7]
[391847408,1760911831762,-500.0,0.00028277,7]
[391847409,1760911831772,-1200.0,0.00028328,2]
[391847410,1760911831781,-1900.0,0.00028329,7]
[391847411,1760911831791,-300.0,0.00028338,2]
[391847412,1760911831801,-1900.0,0.00028339,7]
[391847413,1760911831810,-1900.0,0.00028345,7]
[391847414,1760911831820,-500.0,0.00028376,7]
[391847415,1760911831831,-854.4760783,0.00028398,4]
[391847416,1760911831840,-1000.0,0.00028439,7]
[391847417,1760911831850,-1000.0,0.00028441,7]
[391847418,1760911831859,-600.0,0.00028502,7]
[391847419,1760911831869,-535.60889631,0.00028522,2]
[391847420,1760911831879,-1100.0,0.00028567,7]
[391847421,1760911831890,-150.0,0.00028572,2]
[391847422,1760911831900,-475.82771539,0.00028573,7]
[391847423,1760911831910,-1900.0,0.0002858,7]
[391847424,1760911831920,-2000.0,0.00028611,2]
[391847425,1760911831929,-479.65041901,0.00028611,2]
[391847426,1760911831939,-900.0,0.0002862,7]
[391847427,1760911831948,-500.0,0.00028648,7]
[391847428,1760911831958,-900.0,0.00028657,7]
[391847430,1760911831967,-262.8221474,0.00028711,2]
[391847432,1760911831976,-900.0,0.00028716,7]
[391847434,1760911831986,-1100.0,0.00028747,7]
[391847436,1760911831995,-1436.52,0.00028764,2]
[391847438,1760911832004,-160.68,0.00028771,2]
[391847440,1760911832014,-800.0,0.000288,7]
[391847442,1760911832023,-295.0,0.00028811,2]
[391847444,1760911832032,-1900.0,0.00028827,7]
[391847445,1760911832041,-800.0,0.0002885,7]
[391847447,1760911832050,-658.955,0.00028985,21]
[391847449,1760911832060,-2600.0,0.00028998,7]
[391847451,1760911832070,-600.0,0.00029035,7]
[391847453,1760911832082,-500.0,0.00029038,7]
[391847455,1760911832092,-8134.14,0.00029042,2]
[391847456,1760911832101,-1100.0,0.00029149,7]
[391847458,1760911832111,-500.0,0.0002921,7]
[391847460,1760911832121,-1000.0,0.0002931,7]
[391847462,1760911832130,-522.46311979,0.00029311,2]
[391847464,1760911832139,-500.0,0.00029313,7]
[391847466,1760911832149,-1317.37,0.00029372,2]
[391847468,1760911832158,-800.0,0.00029411,7]
[391847470,1760911832168,-1000.0,0.00029432,7]
[391847472,1760911832177,-281.04173706,0.00029459,7]
[391847488,1760911832329,-1618.95826294,0.00029459,7]
[391847490,1760911832340,-1085.92489637,0.00029588,7]
[391847492,1760911832352,-14.07510363,0.00029588,7]
[391847494,1760911832363,-666.0,0.00029592,3]
[391847496,1760911832373,-292.5952781,0.00029596,7]
[391847499,1760911832390,-188.81237536,0.00028849,2]
[391847501,1760911832399,-1107.4047219,0.00029596,7]
[391847503,1760911832408,-52.31120076,0.00029603,7]
[391847505,1760911832420,-947.68879924,0.00029603,7]
[391847507,1760911832430,-1100.0,0.00029644,7]
[391847509,1760911832439,-1100.0,0.00029663,7]
[391847511,1760911832448,-151.0,0.00029667,7]
[391847513,1760911832457,-1400.0,0.0002967,7]
[391847515,1760911832467,-800.0,0.00029672,7]
[391847517,1760911832476,-472.26733131,0.00029706,7]
[391847519,1760911832486,-939.68610522,0.00029727,7]
[391847522,1760911832501,-60.31389478,0.00029727,7]
[391847523,1760911832510,-900.0,0.00029738,7]
[391847526,1760911832520,-162.20543538,0.00029762,7]
[391847528,1760911832531,-337.79456462,0.00029762,7]
[391847530,1760911832540,-500.0,0.0002982,7]
[391847532,1760911832548,-912.18496225,0.00029842,7]
[391847534,1760911832560,-187.81503775,0.00029842,7]
[391847536,1760911832569,-2600.0,0.00029866,7]
[391847538,1760911832581,-600.0,0.00029888,7]
[391847540,1760911832590,-2600.0,0.00029931,7]
[391847542,1760911832600,-1100.0,0.00029978,7]
[391847544,1760911832609,-1400.0,0.00029983,7]
[391847545,1760911832618,-2600.0,0.00030193,7]
[391847546,1760911832628,-900.0,0.00030195,7]
[391847547,1760911832636,-1100.0,0.00030232,7]
[391847548,1760911832645,-500.0,0.00030238,7]
[391847549,1760911832653,-800.0,0.00030247,7]
[391847550,1760911832662,-800.0,0.00030417,7]
[391847551,1760911832671,-500.0,0.00030475,7]
[391847552,1760911832679,-420.0,0.00030594,2]
[391847554,1760911832688,-900.0,0.00030664,7]
[391847555,1760911832697,-250.0,0.00030675,2]
[391847557,1760911832707,-500.0,0.00030686,7]
[391847560,1760911832716,-1363.0,0.00030717,2]
[391847561,1760911832725,-500.0,0.0003075,7]
[391847563,1760911832734,-150.0,0.00030773,7]
[391847565,1760911832743,-150.0,0.00030773,7]
[391847567,1760911832752,-150.0,0.00030773,7]
[391847569,1760911832762,-150.0,0.00030773,7]
[391847571,1760911832771,-150.0,0.00030773,7]
[391847574,1760911832781,-150.0,0.00030773,7]
[391847576,1760911832790,-15.45231738,0.00030773,7]
[391847591,1760911837545,-134.54768262,0.00030773,7]
[391847593,1760911837554,-151.58704345,0.00030773,7]
[391847595,1760911837563,-150.0,0.00030773,7]
[391847597,1760911837575,-150.0,0.00030773,7]
[391847598,1760911837585,-150.0,0.00030773,7]
[391847599,1760911837594,-150.0,0.00030773,7]
[391847601,1760911837603,-150.0,0.00030773,7]
[391847602,1760911837612,-800.0,0.00030838,7]
[391847603,1760911837620,-253.86527393,0.00030909,7]
[391847604,1760911837635,-246.13472607,0.00030909,7]
[391847605,1760911837644,-500.0,0.00030922,7]
[391847606,1760911837653,-1000.0,0.00030987,7]
[391847607,1760911837665,-900.0,0.00031053,7]
[391847608,1760911837675,-500.0,0.00031063,5]
[391847609,1760911837684,-1000.0,0.00031186,7]
[391847610,1760911837693,-900.0,0.00031196,7]
[391847611,1760911837703,-226.73049659,0.000312,7]
[391847612,1760911837718,-1673.26950341,0.000312,7]
[391847613,1760911837727,-1000.0,0.00031206,7]
[391847614,1760911837737,-85.24773659,0.00031266,7]
[391847615,1760911837749,-514.75226341,0.00031266,7]
[391847616,1760911837758,-500.0,0.000313,7]
[391847617,1760911837767,-500.0,0.00031327,7]
[391847618,1760911837777,-600.0,0.00031329,7]
[391847619,1760911837786,-2600.0,0.00031355,7]
[391847620,1760911837795,-500.0,0.00031386,7]
[391847621,1760911837805,-337.74773659,0.00031429,7]
[391847622,1760911837816,-562.25226341,0.00031429,7]
[391847623,1760911837825,-500.0,0.00031471,5]
[391847624,1760911837835,-800.0,0.00031473,7]
[391847626,1760911837844,-303.54773659,0.00031474,7]
[391847628,1760911837855,-696.45226341,0.00031474,7]
[391847631,1760911837865,-500.0,0.00031476,7]
[391847632,1760911837875,-500.0,0.00031585,7]
[391847633,1760911837884,-500.0,0.00031596,7]
[391847635,1760911837893,-800.0,0.00031668,7]
[391847636,1760911837902,-500.0,0.00031687,7]
[391847637,1760911837912,-2600.0,0.00031765,7]
[391847638,1760911837922,-1900.0,0.00031767,7]
[391847639,1760911837932,-1100.0,0.00031774,7]
[391847640,1760911837942,-2600.0,0.00031778,7]
[391847641,1760911837951,-500.0,0.00031889,7]
[391847642,1760911837960,-150.0,0.00031993,2]
[391847643,1760911837969,-150.0,0.00031993,2]
[391847644,1760911837980,-150.0,0.00031993,2]
[391847645,1760911837989,-150.0,0.00031993,2]
[391847647,1760911837999,-150.0,0.00031993,2]
[391847649,1760911838008,-150.0,0.00031993,2]
[391847651,1760911838017,-150.0,0.00031993,2]
[391847653,1760911838026,-150.0,0.00031993,2]
[391847655,1760911838036,-2051.0,0.00031993,2]
[391847657,1760911838049,-3409.0,0.00031993,2]
[391847659,1760911838059,-1268.0,0.00031993,2]
[391847661,1760911838069,-786.0,0.00031993,2]
[391847663,1760911838078,-571.0,0.00031993,2]
[391847665,1760911838087,-1589.0,0.00031993,2]
[391847667,1760911838097,-1310.0,0.00031993,2]
[391847669,1760911838107,-605.0,0.00031993,2]
[391847671,1760911838116,-817.0,0.00031993,2]
[391847673,1760911838126,-2590.0,0.00031993,2]
[391847675,1760911838136,-1100.0,0.0003202,7]
[391847677,1760911838146,-900.0,0.00032054,7]
[391847679,1760911838156,-500.0,0.00032066,7]
[391847680,1760911838166,-600.0,0.00032097,7]
[391847682,1760911838176,-500.0,0.00032127,7]
[391847684,1760911838185,-2600.0,0.00032127,7]
[391847686,1760911838194,-1195.52614357,0.00032164,2]
[391847688,1760911838203,-500.0,0.00032167,5]
[391847690,1760911838213,-500.0,0.00032167,5]
[391847692,1760911838223,-500.0,0.00032167,5]
[391847694,1760911838232,-500.0,0.00032167,2]
[391847696,1760911838242,-500.0,0.00032167,5]
[391847698,1760911838252,-2600.0,0.00032167,7]
[391847701,1760911838262,-2600.0,0.00032264,7]
[391847703,1760911838272,-2600.0,0.00032276,7]
[391847705,1760911838282,-1400.0,0.00032342,7]
[391847707,1760911838291,-1000.0,0.00032358,7]
[391847708,1760911838301,-1000.0,0.00032444,7]
[391847710,1760911838311,-150.0,0.00032482,7]
[391847712,1760911838320,-150.0,0.00032482,7]
[391847714,1760911838330,-150.0,0.00032482,7]
[391847716,1760911838340,-150.0,0.00032482,7]
[391847719,1760911838349,-150.0,0.00032482,7]
[391847720,1760911838359,-150.0,0.00032482,7]
[391847722,1760911838368,-150.0,0.00032482,7]
[391847725,1760911838378,-150.0,0.00032482,7]
[391847726,1760911838387,-815.11724019,0.00032502,7]
[391847729,1760911838398,-1100.0,0.00032507,7]
[391847731,1760911838408,-500.0,0.00032523,7]
[391847733,1760911838417,-500.0,0.0003255,7]
[391847735,1760911838428,-2600.0,0.00032577,7]
[391847737,1760911838438,-1000.0,0.00032591,7]
[391847739,1760911838448,-1100.0,0.00032639,7]
[391847741,1760911838458,-1900.0,0.00032645,7]
[391847743,1760911838468,-2600.0,0.00032711,7]
[391847745,1760911838478,-1000.0,0.00032715,5]
[391847747,1760911838487,-500.0,0.00032746,7]
[391847749,1760911838497,-600.0,0.00032756,7]
[391847751,1760911838507,-900.0,0.00032826,7]
[391847753,1760911838518,-2600.0,0.00032843,7]
[391847755,1760911838528,-500.0,0.00032905,7]
[391847757,1760911838538,-1900.0,0.00032927,7]
[391847759,1760911838547,-968.0011,0.00032947,2]
[391847761,1760911838556,-379.5089931,0.00032992,2]
[391847762,1760911838566,-1477.1247825,0.00032992,2]
[391847763,1760911838576,-258.1648647,0.00032992,2]
[391847764,1760911838585,-153.0,0.00033,14]
[391847765,1760911838598,-500.0,0.00033021,7]
[391847766,1760911838608,-587.0,0.0003303,2]
[391847767,1760911838618,-1400.0,0.00033038,7]
[391847768,1760911838628,-500.0,0.00033047,8]
[391847769,1760911838638,-512.26139442,0.00033047,8]
[391847770,1760911838648,-500.0,0.00033047,8]
[391847771,1760911838658,-500.0,0.00033047,8]
[391847772,1760911838667,-514.70877508,0.00033047,8]
[391847773,1760911838677,-603.74087079,0.00033047,8]
[391847774,1760911838686,-262.50691823,0.00033047,8]
[391847775,1760911838696,-500.0,0.00033047,8]
[391847776,1760911838705,-500.0,0.00033047,8]
[391847777,1760911838715,-515.77975827,0.00033047,8]
[391847778,1760911838724,-500.0,0.00033047,8]
[391847779,1760911838734,-500.0,0.00033047,8]
[391847780,1760911838744,-500.65028846,0.00033047,8]
[391847781,1760911838754,-506.1555082,0.00033047,8]
[391847782,1760911838763,-500.0,0.00033047,8]
[391847783,1760911838773,-594.05,0.00033047,8]
[391847784,1760911838783,-500.0,0.00033047,8]
[391847785,1760911838793,-652.84,0.00033047,8]
[391847786,1760911838803,-500.0,0.00033047,8]
[391847787,1760911838812,-500.0,0.00033047,8]
[391847788,1760911838821,-436.46327342,0.00033047,8]
[391847789,1760911838831,-409.46378891,0.00033047,8]
[391847790,1760911838841,-504.50043722,0.00033047,8]
[391847791,1760911838850,-606.14,0.00033047,8]
[391847792,1760911838859,-500.0,0.00033047,8]
[391847793,1760911838869,-447.82106725,0.00033047,8]
[391847794,1760911838879,-413.83825839,0.00033047,8]
[391847795,1760911838889,-500.0,0.00033047,8]
[391847796,1760911838898,-558.91802476,0.00033047,8]
[391847797,1760911838908,-422.12528215,0.00033047,8]
[391847798,1760911838917,-500.0,0.00033047,8]
[391847799,1760911838927,-506.3447821,0.00033047,8]
[391847800,1760911838936,-500.0,0.00033047,8]
[391847801,1760911838946,-500.89,0.00033047,8]
[391847802,1760911838955,-500.0,0.00033047,8]
[391847803,1760911838964,-500.0,0.00033047,8]
[391847804,1760911838973,-500.0,0.00033047,2]
[391847805,1760911838987,-500.0,0.00033047,8]
[391847806,1760911838996,-500.0,0.00033047,8]
[391847807,1760911839006,-500.0,0.00033047,8]
[391847808,1760911839016,-500.0,0.00033047,8]
[391847809,1760911839025,-151.0,0.00033047,30]
[391847810,1760911839035,-0.96997778,0.00033047,30]
[391847811,1760911839048,-150.03002222,0.00033047,30]
[391847812,1760911839058,-151.0,0.00033047,30]
[391847813,1760911839068,-151.0,0.00033047,30]
[391847814,1760911839077,-151.0,0.00033047,30]
[391847815,1760911839087,-151.0,0.00033047,30]
[391847816,1760911839096,-250.83116368,0.00033047,8]
[391847821,1760911839618,-307.98533979,0.00031993,2]
[391847822,1760911839729,-875.01466021,0.00031993,2]
[391847823,1760911839739,-249.16883632,0.00033047,8]
[391847824,1760911839749,-229.12742907,0.00033047,8]
[391847825,1760911839759,-500.0,0.00033047,8]
[391847826,1760911839768,-500.0,0.00033047,8]
[391847827,1760911839777,-500.0,0.00033047,8]
[391847828,1760911839787,-500.0,0.00033047,8]
[391847829,1760911839796,-574.71,0.00033047,8]
[391847830,1760911839806,-500.0,0.00033047,8]
[391847831,1760911839815,-500.0,0.00033047,8]
[391847832,1760911839824,-500.0,0.00033047,8]
[391847833,1760911839833,-500.0,0.00033047,8]
[391847834,1760911839843,-500.0,0.00033047,8]
[391847835,1760911839852,-500.0,0.00033047,8]
[391847836,1760911839861,-500.0,0.00033047,8]
[391847837,1760911839870,-500.0,0.00033047,8]
[391847838,1760911839883,-151.0,0.00033047,30]
[391847839,1760911839893,-151.0,0.00033047,30]
[391847840,1760911839902,-151.0,0.00033047,30]
[391847841,1760911839912,-151.0,0.00033047,30]
[391847842,1760911839922,-286.772835,0.00033047,30]
[391847843,1760911839931,-286.772835,0.00033047,30]
[391847844,1760911839941,-286.772835,0.00033047,30]
[391847845,1760911839951,-286.772835,0.00033047,30]
[391847846,1760911839960,-151.0,0.00033047,30]
[391847847,1760911839969,-151.0,0.00033047,30]
[391847848,1760911839979,-151.0,0.00033047,30]
[391847849,1760911839989,-151.0,0.00033047,30]
[391847850,1760911839998,-151.0,0.00033047,30]
[391847851,1760911840008,-169.65434,0.00033047,30]
[391847852,1760911840017,-169.65434,0.00033047,30]
[391847853,1760911840027,-169.65434,0.00033047,30]
[391847854,1760911840037,-169.65434,0.00033047,30]
[391847855,1760911840046,-151.0,0.00033047,30]
[391847856,1760911840056,-151.0,0.00033047,30]
[391847857,1760911840065,-222.42,0.00033047,7]
[391847858,1760911840075,-151.0,0.00033047,30]
[391847859,1760911840085,-151.0,0.00033047,30]
[391847860,1760911840095,-151.0,0.00033047,30]
[391847861,1760911840104,-151.0,0.00033047,30]
[391847862,1760911840113,-151.0,0.00033047,30]
[391847863,1760911840122,-151.0,0.00033047,30]
[391847864,1760911840132,-151.0,0.00033047,30]
[391847865,1760911840141,-151.0,0.00033047,30]
[391847866,1760911840150,-800.0,0.00033084,7]
[391847867,1760911840160,-600.0,0.00033097,7]
[391847868,1760911840170,-500.0,0.00033105,7]
[391847869,1760911840180,-900.0,0.00033106,7]
[391847870,1760911840189,-1000.0,0.00033115,7]
[391847871,1760911840199,-5917.32971062,0.00033122,2]
[391847872,1760911840209,-201.82,0.00033165,2]
[391847873,1760911840218,-4721.0,0.00033177,2]
[391847874,1760911840228,-2600.0,0.000332,7]
[391847875,1760911840237,-1079.97,0.00033201,2]
[391847876,1760911840246,-500.0,0.0003321,8]
[391847877,1760911840256,-500.0,0.0003321,8]
[391847878,1760911840268,-184.52729893,0.0003321,8]
[391847879,1760911840278,-500.0,0.0003321,8]
[391847880,1760911840287,-500.0,0.0003321,8]
[391847881,1760911840296,-500.0,0.0003321,8]
[391847883,1760911840305,-480.54388131,0.0003321,8]
[391847884,1760911840315,-503.9,0.0003321,8]
[391847885,1760911840324,-500.0,0.0003321,8]
[391847886,1760911840333,-500.0,0.0003321,8]
[391847887,1760911840343,-688.81,0.0003321,8]
[391847888,1760911840352,-500.0,0.00033211,8]
[391847889,1760911840361,-500.0,0.00033211,8]
[391847890,1760911840370,-500.0,0.00033211,8]
[391847891,1760911840380,-500.0,0.00033211,8]
[391847892,1760911840389,-500.0,0.00033211,8]
[391847893,1760911840399,-500.0,0.00033211,8]
[391847894,1760911840408,-500.0,0.00033211,2]
[391847895,1760911840418,-749.5,0.00033211,8]
[391847896,1760911840428,-18598.6242435,0.00033211,2]
[391847897,1760911840437,-162.81,0.00033211,2]
[391847898,1760911840447,-8893.71890581,0.00033212,34]
[391847899,1760911840456,-18598.6242435,0.00033212,2]
[391847900,1760911840465,-151.0,0.00033212,30]
[391847901,1760911840475,-151.0,0.00033212,30]
[391847902,1760911840484,-151.0,0.00033212,30]
[391847903,1760911840494,-151.0,0.00033212,30]
[391847904,1760911840503,-981.4220829,0.00033218,5]
[391847905,1760911840513,-157.02982528,0.0003322,8]
[391847906,1760911840523,-566.94,0.0003322,8]
[391847907,1760911840532,-500.0,0.0003322,8]
[391847908,1760911840541,-592.41,0.0003322,8]
[391847909,1760911840551,-500.0,0.0003322,8]
[391847910,1760911840560,-500.0,0.0003322,8]
[391847911,1760911840570,-500.0,0.0003322,8]
[391847912,1760911840579,-185.57,0.0003322,8]
[391847913,1760911840593,-170.010548,0.0003322,30]
[391847914,1760911840602,-151.0,0.0003322,30]
[391847915,1760911840611,-500.0,0.0003322,8]
[391847916,1760911840620,-151.0,0.0003322,30]
[391847917,1760911840629,-289.283541,0.0003322,30]
[391847918,1760911840639,-500.0,0.0003322,8]
[391847919,1760911840649,-500.0,0.0003322,8]
[391847920,1760911840658,-500.0,0.0003322,8]
[391847921,1760911840667,-639.88,0.0003322,8]
[391847922,1760911840677,-1000.0,0.0003322,8]
[391847923,1760911840686,-542.02,0.0003322,8]
[391847924,1760911840695,-499.99999999,0.0003322,8]
[391847925,1760911840704,-500.0,0.0003322,8]
[391847926,1760911840714,-622.29,0.00033221,8]
[391847927,1760911840724,-500.0,0.00033221,8]
[391847928,1760911840733,-800.22,0.00033221,8]
[391847929,1760911840743,-500.0,0.00033221,8]
[391847930,1760911840753,-500.0,0.00033221,8]
[391847931,1760911840762,-754.23,0.00033221,8]
[391847932,1760911840772,-504.67010048,0.00033221,8]
[391847933,1760911840782,-754.53,0.00033221,8]
[391847934,1760911840791,-503.50801076,0.00033221,8]
[391847935,1760911840800,-500.0,0.00033221,8]
[391847936,1760911840810,-600.69434855,0.00033221,8]
[391847937,1760911840819,-500.0,0.00033221,8]
[391847938,1760911840828,-758.62,0.00033221,8]
[391847939,1760911840841,-300.0,0.00033221,2]
[391847940,1760911840851,-500.0,0.00033221,8]
[391847941,1760911840860,-500.0,0.00033221,8]
[391847942,1760911840870,-500.0,0.00033221,8]
[391847943,1760911840879,-500.0,0.00033221,8]
[391847944,1760911840889,-500.0,0.00033221,8]
[391847945,1760911840898,-500.0,0.00033221,8]
[391847946,1760911840907,-500.0,0.00033221,8]
[391847947,1760911840916,-500.0,0.00033221,8]
[391847948,1760911840926,-532.7,0.00033221,8]
[391847949,1760911840935,-1000.0,0.00033221,8]
[391847950,1760911840944,-431.06363188,0.00033221,8]
[391847951,1760911840955,-500.0,0.00033221,8]
[391847952,1760911840964,-341.44918057,0.00033221,8]
[391847953,1760911840973,-1818.05,0.00033221,7]
[391847954,1760911840983,-659.78,0.00033221,8]
[391847955,1760911840991,-500.0,0.00033221,8]
[391847956,1760911841000,-218.17032,0.00033221,30]
[391847957,1760911841009,-151.0,0.00033221,30]
[391847958,1760911841018,-151.0,0.00033221,30]
[391847959,1760911841028,-151.0,0.00033221,30]
[391847960,1760911841037,-286.772835,0.00033221,30]
[391847961,1760911841046,-500.0,0.00033221,8]
[391847962,1760911841056,-286.772835,0.00033221,30]
[391847963,1760911841065,-286.772835,0.00033221,30]
[391847964,1760911841075,-286.772835,0.00033221,30]
[391847965,1760911841084,-500.0,0.00033221,8]
[391847966,1760911841094,-500.0,0.00033221,2]
[391847967,1760911841103,-151.0,0.00033221,30]
[391847968,1760911841113,-692.52,0.00033221,8]
[391847969,1760911841122,-500.0,0.00033221,8]